bitfinex/quotes_ETHUSD_20240731
["timestamp","ask_amount","ask_price","bid_price","bid_amount"]
[1722440213565,3.01924,3312.1,3311.5,0.10991202]
[1722440213724,4.89484398,3312.4,3311.5,0.10991202]
[1722440214060,4.89498398,3312.3,3311.5,0.10991202]
[1722440214255,3.01916,3312.2,3311.5,0.10991202]
[1722440214455,1.87585398,3312.3,3311.5,0.10991202]
[1722440214666,4.89483398,3312.4,3311.5,0.10991202]
[1722440214816,3.01915,3312.2,3311.5,0.10991202]
[1722440215453,3.0191,3312.3,3311.5,0.10991202]
[1722440215653,3.0191,3312.3,3311.6,0.2385812]
[1722440216049,3.01901,3312.4,3311.7,0.10986429]
[1722440216250,3.01906,3312.3,3311.7,0.10986429]
[1722440216454,3.01906,3312.3,3311.6,0.2385812]
[1722440216771,3.01914,3312.2,3311.7,0.10986429]
[1722440217125,3.01908,3312.3,3311.7,0.10986429]
[1722440217622,3.0192,3312.2,3311.7,0.10986429]
[1722440217822,1.87410652,3312.5,3311.7,0.10986429]
[1722440218067,3.01908,3312.3,3311.7,0.10986429]
[1722440218468,3.01925,3312.1,3311.7,0.10986429]
[1722440218766,3.01933,3312.0,3311.4,2.2759]
[1722440218958,3.01952,3311.8,3310.9,5.44331]
[1722440219159,3.01952,3311.8,3311.0,0.65524363]
[1722440219468,3.01947,3311.9,3311.0,0.65524363]
[1722440219469,3.01959,3311.7,3311.0,0.65524363]
[1722440219667,3.01959,3311.7,3311.0,0.11091263]
[1722440220074,3.01947,3311.9,3311.0,0.11091263]
[1722440220242,3.01947,3311.9,3311.1,3.02013]
[1722440220447,3.01947,3311.9,3311.0,3.13114263]
[1722440220672,2.06018298,3312.3,3311.2,0.11105055]
[1722440220673,0.18741065,3312.3,3311.2,0.11105055]
[1722440220875,3.01965,3311.7,3311.1,0.11107442]
[1722440221078,3.01987,3311.4,3310.9,2.423]
[1722440221386,3.01946,3311.9,3310.9,5.44328]
[1722440221571,6.28220107,3312.2,3311.2,3.02005]
[1722440221774,5.06018298,3312.3,3311.2,0.06039839]
[1722440221775,0.18741065,3312.3,3311.2,0.06039839]
[1722440221951,10.12661,3312.6,3311.7,3.01958]
[1722440222291,10.12663,3312.6,3311.8,0.10730185]
[1722440222459,7.1078,3312.6,3311.8,3.12673185]
[1722440222660,7.1078,3312.6,3311.9,3.01941]
[1722440222874,7.1078,3312.6,3312.0,3.01931]
[1722440223041,7.1078,3312.6,3312.0,0.3126588]
[1722440223249,7.1078,3312.6,3312.1,0.10723026]
[1722440223469,3.01892,3312.5,3312.1,0.10723026]
[1722440223988,3.0193,3312.1,3311.8,0.2]
[1722440224313,3.01941,3311.9,3311.8,0.2]
[1722440224516,3.01927,3312.1,3311.8,0.2]
[1722440224718,3.01941,3311.9,3311.8,0.2]
[1722440225530,3.321297,3312.0,3311.8,0.2]
[1722440225706,3.01941,3311.9,3311.8,0.2]
[1722440227194,2.71601,3311.9,3311.8,0.2]
[1722440227509,3.321247,3312.0,3311.8,0.2]
[1722440227911,3.01941,3311.9,3311.8,0.2]
[1722440228234,3.6534757,3311.9,3311.8,0.2]
[1722440228392,6.6728857,3311.9,3311.8,0.2]
[1722440229828,6.03882,3311.9,3311.8,0.2]
[1722440232087,3.01941,3311.9,3311.8,0.2]
[1722440234545,3.321267,3312.0,3311.8,0.2]
[1722440234750,0.05264266,3312.4,3311.8,0.2]
[1722440234927,7.1078,3312.5,3312.3,3.01905]
[1722440235131,10.12589,3313.4,3312.5,3.01881]
[1722440235458,3.01825,3313.2,3312.6,0.1072286]
[1722440235745,7.1078,3313.4,3312.6,0.1072286]
[1722440235746,4.030819,3313.3,3312.6,0.1072286]
[1722440235941,4.030819,3313.3,3312.4,3.01893]
[1722440235942,3.01823,3313.3,3312.4,3.01893]
[1722440236140,3.01823,3313.3,3312.7,0.10720474]
[1722440236304,3.01823,3313.3,3312.5,3.01885]
[1722440236502,7.1078,3313.4,3312.5,3.01885]
[1722440236733,10.12591,3313.4,3312.6,0.1072286]
[1722440237325,3.01831,3313.2,3312.6,0.1072286]
[1722440237528,3.01835,3313.1,3312.3,2.2706]
[1722440237727,3.01819,3313.3,3312.7,0.10720474]
[1722440238035,10.12586,3313.4,3312.3,5.28961]
[1722440238208,7.1078,3313.4,3312.5,3.01879]
[1722440238414,7.1078,3313.4,3312.7,3.01863]
[1722440238954,7.1078,3313.4,3312.8,0.10675389]
[1722440239842,3.01755,3314.0,3312.9,3.01843]
[1722440240056,3.01755,3314.0,3313.2,2.3474]
[1722440240547,1.31427,3314.0,3313.3,0.1065759]
[1722440240747,4.33178,3314.0,3313.2,2.3474]
[1722440240931,3.01766,3313.9,3313.2,2.3474]
[1722440241140,1.31427,3314.0,3313.2,2.3474]
[1722440241300,10.12527,3314.1,3313.2,2.3474]
[1722440241301,7.1078,3314.1,3313.5,3.01787]
[1722440241850,3.11864313,3314.6,3313.7,3.0177]
[1722440242180,3.11864313,3314.6,3313.9,3.01759]
[1722440242181,1.24253247,3314.6,3313.9,3.01759]
[1722440242352,1.24253247,3314.6,3313.7,3.0177]
[1722440242353,0.93913247,3314.6,3313.7,3.0177]
[1722440242531,0.93913247,3314.6,3313.8,3.01767]
[1722440242716,7.1078,3314.7,3313.8,0.16662686]
[1722440242918,10.12469,3314.7,3313.8,3.12394736]
[1722440243119,3.0172,3314.4,3313.2,5.60035]
[1722440243472,3.0171,3314.5,3313.4,3.01798]
[1722440243745,3.0171,3314.5,3313.6,3.01785]
[1722440243960,10.12469,3314.7,3313.6,3.01786]
[1722440243961,0.30171,3314.4,3313.6,3.01786]
[1722440244106,0.30171,3314.4,3313.7,3.18435181]
[1722440244307,3.01701,3314.6,3313.7,3.12399864]
[1722440244552,7.1078,3314.7,3313.9,3.01759]
[1722440244775,12.43,3315.1,3314.1,3.0174]
[1722440244776,24.43179301,3315.1,3314.1,3.0174]
[1722440245047,24.43179301,3315.1,3314.0,5.39473]
[1722440245048,19.5378,3315.1,3314.3,3.01722]
[1722440245235,2.4431793,3315.0,3314.2,0.10520159]
[1722440245435,2.4431793,3315.0,3314.4,0.10515084]
[1722440245616,2.4431793,3315.0,3314.3,3.12239466]
[1722440245819,7.1078,3315.4,3314.5,0.10512701]
[1722440246003,7.1078,3315.4,3314.3,0.06034179]
[1722440246004,7.1078,3315.4,3314.4,0.10515084]
[1722440246239,7.1078,3315.4,3314.3,0.06034179]
[1722440246550,7.1078,3315.4,3314.6,3.0169]
[1722440246757,10.12405,3315.4,3314.4,3.01708]
[1722440246924,3.01667,3315.0,3314.0,5.39477]
[1722440247120,1.012405,3315.3,3314.5,0.10504666]
[1722440247319,3.01691,3314.7,3314.0,2.3773]
[1722440247618,3.01691,3314.7,3314.1,0.105074]
[1722440247819,3.01672,3314.9,3314.1,0.105074]
[1722440247820,3.01696,3314.6,3314.1,0.105074]
[1722440248020,0.301696,3314.5,3313.8,3.01762]
[1722440248352,3.01701,3314.6,3313.7,3.01777]
[1722440248658,3.01701,3314.6,3313.8,0.1052073]
[1722440249513,3.01701,3314.6,3313.8,3.1228773]
[1722440250131,3.01701,3314.6,3313.8,0.1052073]
[1722440250448,3.01701,3314.6,3313.6,8.45748]
[1722440250662,3.01717,3314.4,3313.9,0.10522363]
[1722440250805,3.01737,3314.2,3313.6,2.4219]
[1722440251008,3.01741,3314.1,3314.0,0.1051998]
[1722440251201,2.4329,3314.7,3312.8,3.01857]
[1722440251202,3.0178,3313.7,3312.8,3.01857]
[1722440251454,1.87459372,3314.6,3312.8,3.01857]
[1722440251455,3.0177,3313.8,3312.9,3.0185]
[1722440251655,7.1078,3314.1,3313.0,3.68244896]
[1722440251869,7.1078,3314.1,3313.1,3.01827]
[1722440252025,7.1078,3314.1,3313.2,0.06035575]
[1722440252350,7.1078,3314.1,3313.3,3.01807]
[1722440252555,10.1078,3314.7,3313.4,2.4219]
[1722440252764,3.01714,3314.4,3313.5,3.01788]
[1722440252965,6.03436,3314.4,3313.5,3.01788]
[1722440253271,6.03436,3314.4,3313.4,3.08781645]
[1722440253272,3.01741,3314.1,3313.6,0.10529515]
[1722440253561,3.01714,3314.4,3313.6,0.10529515]
[1722440253757,3.01714,3314.4,3313.5,3.01795]
[1722440253922,3.01714,3314.4,3313.7,0.10527131]
[1722440254124,3.01714,3314.4,3314.0,0.2]
[1722440254352,4.02781,3314.6,3314.0,0.2]
[1722440254658,1.01078,3314.6,3314.1,0.10517597]
[1722440254873,8.31872,3314.2,3314.1,0.10517597]
[1722440255083,8.31872,3314.2,3314.0,0.2]
[1722440255084,9.05223,3314.1,3314.0,0.2]
[1722440255381,16.94341493,3314.1,3314.0,0.2]
[1722440255675,15.61964,3314.1,3314.0,0.2]
[1722440255966,17.62862108,3314.1,3314.0,0.2]
[1722440256338,14.61121108,3314.1,3314.0,0.2]
[1722440256831,11.04380108,3314.1,3314.0,0.2]
[1722440257261,13.75861108,3314.1,3314.0,0.2]
[1722440257445,12.61385969,3314.1,3314.0,0.2]
[1722440257843,10.74120108,3314.1,3314.0,0.2]
[1722440258255,10.74120108,3314.1,3314.0,0.4]
[1722440259274,8.73222,3314.1,3314.0,0.4]
[1722440262351,8.73222,3314.1,3314.0,0.6]
[1722440262746,11.74963,3314.1,3314.0,0.6]
[1722440263036,13.62338096,3314.1,3314.0,0.6]
[1722440263230,10.60597096,3314.1,3314.0,0.6]
[1722440263478,11.96830806,3314.1,3314.0,0.6]
[1722440263780,10.0945571,3314.1,3314.0,0.6]
[1722440264476,13.1119671,3314.1,3314.0,0.6]
[1722440264705,14.98571611,3314.1,3314.0,0.6]
[1722440265477,18.4940771,3314.1,3314.0,0.6]
[1722440265643,16.07928833,3314.1,3314.0,0.6]
[1722440265850,18.26566182,3314.1,3314.0,0.6]
[1722440266047,18.52587708,3314.1,3314.0,0.6]
[1722440266275,18.26566182,3314.1,3314.0,0.6]
[1722440266433,18.26566182,3314.1,3314.0,0.8]
[1722440266434,16.07928833,3314.1,3314.0,0.8]
[1722440267515,10.14717833,3314.1,3314.0,0.8]
[1722440267717,12.02212435,3314.1,3314.0,0.8]
[1722440267864,11.96950312,3314.1,3314.0,0.8]
[1722440268398,13.1119671,3314.1,3314.0,0.8]
[1722440268579,10.0945571,3314.1,3314.0,0.8]
[1722440268760,13.1119671,3314.1,3314.0,0.8]
[1722440268957,10.0945571,3314.1,3314.0,0.8]
[1722440269266,11.96948932,3314.1,3314.0,0.8]
[1722440269482,10.0945571,3314.1,3314.0,0.8]
[1722440269864,11.96995065,3314.1,3314.0,0.8]
[1722440270221,3.0174,3314.2,3314.0,0.8]
[1722440270365,3.01722,3314.4,3314.0,0.8]
[1722440270563,3.01709,3314.5,3314.0,1.0]
[1722440270869,3.01729,3314.3,3314.0,1.0]
[1722440271268,3.01729,3314.3,3314.1,0.0985302]
[1722440271612,3.01729,3314.3,3314.0,1.0]
[1722440271907,3.01734,3314.2,3314.0,1.0]
[1722440272112,3.01734,3314.2,3314.1,0.09874348]
[1722440272311,2.71474,3314.2,3314.0,1.0]
[1722440272498,3.01718,3314.4,3314.0,1.0]
[1722440273813,1.87590079,3314.6,3314.0,1.0]
[1722440274019,7.1078,3314.7,3314.1,2.449]
[1722440274312,7.1078,3314.7,3314.2,0.3449]
[1722440274514,10.12471,3314.7,3314.2,0.3449]
[1722440275091,3.01696,3314.6,3314.2,0.3449]
[1722440275290,3.01696,3314.6,3314.1,2.449]
[1722440275686,1.87590079,3314.9,3314.1,2.449]
[1722440275899,9.76975382,3315.2,3314.4,3.01708]
[1722440275900,7.1078,3315.2,3314.4,3.01708]
[1722440276381,3.01662,3315.0,3314.5,0.09511545]
[1722440276720,3.01659,3315.0,3314.2,0.06033859]
[1722440277031,3.01659,3315.0,3314.3,0.25093386]
[1722440277329,12.00395846,3315.2,3314.3,3.36273311]
[1722440277626,7.1078,3315.2,3314.3,6.37988311]
[1722440277833,7.1078,3315.2,3314.6,3.01695]
[1722440278176,7.1078,3315.2,3314.7,0.09456394]
[1722440278380,10.12421,3315.2,3314.7,0.09456394]
[1722440278660,10.12421,3315.2,3314.3,0.25093386]
[1722440279127,7.1078,3315.2,3314.4,2.47757408]
[1722440279278,7.1078,3315.2,3314.5,0.57457079]
[1722440279620,3.01659,3315.0,3314.5,0.09451891]
[1722440279827,3.0166,3315.0,3314.5,0.09451891]
[1722440279984,3.0166,3315.0,3314.6,0.09449508]
[1722440280188,1.88156669,3315.1,3314.6,0.09449508]
[1722440280385,1.88156669,3315.1,3314.4,2.3226]
[1722440280583,1.88156669,3315.1,3314.5,0.6535913]
[1722440280840,1.88156669,3314.8,3314.5,0.09451891]
[1722440281139,1.88156669,3314.8,3314.0,1.0]
[1722440281140,1.88156669,3314.6,3314.0,4.01749]
[1722440281280,1.88156669,3314.8,3314.1,3.0174]
[1722440281486,1.88156669,3314.8,3314.2,3.01731]
[1722440281704,1.88156669,3314.8,3314.3,0.31119242]
[1722440281877,1.88156669,3314.8,3314.3,3.41989244]
[1722440282077,1.88156669,3315.0,3314.3,3.41989244]
[1722440282623,1.88156669,3314.9,3314.3,3.41989244]
[1722440282783,1.88156669,3315.0,3314.4,3.01712]
[1722440282988,1.88156669,3315.1,3314.5,0.34197924]
[1722440283285,1.88216513,3315.1,3314.5,0.43341161]
[1722440283512,8.98996513,3315.2,3314.5,3.45042161]
[1722440283712,1.88216513,3315.3,3314.6,2.3503]
[1722440283910,4.89839513,3315.4,3314.7,0.27837116]
[1722440284135,1.88216513,3315.1,3314.7,0.09138472]
[1722440284317,1.88216513,3315.2,3314.7,0.09138472]
[1722440285089,4.89863513,3315.2,3314.7,0.09138472]
[1722440285289,1.88216513,3315.1,3314.7,0.09138472]
[1722440285635,4.89868513,3315.1,3314.7,0.09138472]
[1722440286129,1.88216513,3315.1,3314.7,0.09138472]
[1722440286341,4.89857513,3315.2,3314.7,0.09138472]
[1722440286490,1.88219542,3315.0,3314.7,0.09138472]
[1722440286690,3.01659,3315.0,3314.7,0.09138472]
[1722440287001,1.88219542,3314.9,3314.7,0.09138472]
[1722440287210,1.88219542,3314.9,3314.2,2.4013]
[1722440287384,4.59618542,3315.0,3314.2,3.043165]
[1722440287580,4.59618542,3315.0,3314.3,0.09148002]
[1722440288036,12.31996466,3315.4,3314.4,3.01713]
[1722440288331,7.1078,3315.4,3314.4,0.09134499]
[1722440288487,7.1078,3315.4,3314.6,3.01695]
[1722440288701,7.1078,3315.4,3314.7,0.30772882]
[1722440288702,3.01631,3315.3,3314.7,0.30772882]
[1722440288885,10.12408,3315.4,3314.7,0.09127352]
[1722440289087,10.12408,3315.4,3314.5,3.01697]
[1722440289387,10.12408,3315.4,3314.8,0.09124352]
[1722440289585,7.1078,3315.4,3314.9,0.09121969]
[1722440289784,7.1078,3315.4,3315.0,2.3243]
[1722440290029,7.1078,3315.4,3315.0,2.56585197]
[1722440290333,7.1078,3315.4,3315.1,0.09114734]
[1722440293341,4.89744461,3315.2,3315.1,0.09114734]
[1722440293490,3.01637,3315.3,3315.1,0.09114734]
[1722440293718,1.88080954,3315.3,3314.5,3.01703]
[1722440293910,1.88080954,3315.3,3314.6,3.318573]
[1722440294089,1.88080954,3315.3,3314.6,3.40983636]
[1722440294290,4.89712954,3315.3,3314.6,0.39296636]
[1722440294739,1.88080954,3315.3,3314.6,0.39296636]
[1722440294907,1.88080954,3315.3,3314.7,0.34099464]
[1722440295110,1.88080954,3315.3,3314.7,0.43223418]
[1722440295593,1.88080954,3315.3,3314.8,3.01676]
[1722440295941,1.88080954,3315.4,3314.9,2.3587]
[1722440296098,1.880507,3315.4,3314.9,2.9455005]
[1722440296436,1.880507,3315.4,3315.0,0.09116807]
[1722440296604,1.880507,3315.6,3315.2,3.01632]
[1722440296809,1.880507,3315.8,3315.3,3.01626]
[1722440297019,1.880507,3315.9,3315.4,0.301626]
[1722440297343,1.880507,3316.0,3315.5,0.09097486]
[1722440297728,1.880507,3316.0,3315.4,3.317796]
[1722440297920,1.880507,3316.0,3315.6,0.09095105]
[1722440298118,1.880507,3316.0,3315.4,3.317796]
[1722440298313,1.880507,3316.1,3315.5,0.6334106]
[1722440298512,1.880507,3316.0,3315.5,0.72438546]
[1722440299118,10.12312,3316.4,3315.6,2.3494]
[1722440299119,7.1078,3316.4,3315.6,2.3494]
[1722440299471,8.98934026,3316.4,3315.6,5.36539]
[1722440299643,8.98934026,3316.4,3315.7,0.62709254]
[1722440299815,8.98934026,3316.4,3315.8,3.07616087]
[1722440300014,8.98934026,3316.4,3315.9,0.09050592]
[1722440300015,7.1078,3316.4,3315.9,0.09050592]
[1722440300265,1.88154026,3316.6,3315.7,0.536539]
[1722440300566,0.05257197,3317.0,3315.6,2.3494]
[1722440300567,1.88154026,3316.8,3316.0,3.01561]
[1722440300730,1.88154026,3316.8,3316.1,3.07583415]
[1722440300937,1.88154026,3316.9,3316.2,3.01544]
[1722440301226,1.88154026,3317.0,3316.2,3.1057788]
[1722440301434,3.01469,3317.1,3316.2,3.01544]
[1722440301630,4.89623026,3317.1,3316.2,3.62457741]
[1722440301855,3.01469,3317.1,3316.2,3.62457741]
[1722440302020,3.01478,3317.0,3316.2,3.62457741]
[1722440302215,2.71218,3317.0,3316.2,3.62457741]
[1722440303775,2.71218,3317.0,3316.2,0.60913741]
[1722440303927,2.71218,3317.0,3316.3,0.36850216]
[1722440304669,3.01496,3316.8,3316.3,0.36850216]
[1722440304968,3.01496,3316.8,3315.8,3.01583]
[1722440304969,3.01519,3316.6,3316.4,0.09016773]
[1722440305188,6.03044,3316.5,3316.4,0.09016773]
[1722440305417,3.01546,3316.3,3315.9,0.2]
[1722440305899,9.29986341,3317.2,3315.9,0.2]
[1722440305900,1.87891149,3316.7,3316.0,0.09026294]
[1722440306081,3.0155,3316.2,3316.0,0.09026294]
[1722440306406,3.01539,3316.4,3316.0,0.09026294]
[1722440306555,3.01545,3316.3,3316.0,0.09026294]
[1722440306910,3.01514,3316.6,3316.0,0.09026294]
[1722440307206,3.01486,3316.9,3316.1,0.0603088]
[1722440307499,3.01486,3316.9,3316.2,0.39781221]
[1722440307707,7.1078,3317.2,3316.2,0.39781221]
[1722440307708,10.12246,3317.2,3316.4,2.4778]
[1722440307997,7.1078,3317.2,3316.4,5.49306]
[1722440308153,7.1078,3317.2,3316.5,0.55533632]
[1722440308490,3.0145,3317.3,3316.5,0.64548026]
[1722440308650,3.0145,3317.3,3316.5,3.66065026]
[1722440309382,3.01455,3317.3,3316.5,0.64548026]
[1722440309589,0.4521957,3317.4,3316.6,0.67415215]
[1722440309766,0.4521957,3317.4,3316.7,3.01498]
[1722440309952,0.4521957,3317.4,3316.7,0.08978456]
[1722440310410,0.4521957,3317.4,3316.7,3.10475456]
[1722440310567,0.4521957,3317.4,3316.7,3.16504768]
[1722440310767,0.4521957,3317.4,3316.8,0.67939507]
[1722440310997,3.38916,3317.7,3316.8,0.73968824]
[1722440311335,0.375,3317.7,3317.0,3.01476]
[1722440311477,0.375,3317.7,3317.0,0.0602881]
[1722440311687,0.375,3317.7,3317.1,0.08948572]
[1722440311869,0.375,3317.7,3317.1,0.14977178]
[1722440312514,0.375,3317.7,3317.2,5.42376]
[1722440312726,0.375,3317.7,3317.2,2.49851386]
[1722440313106,0.375,3317.7,3317.2,5.51309386]
[1722440313412,0.375,3317.7,3317.3,0.6176237]
[1722440313911,0.375,3317.7,3317.4,0.08926321]
[1722440314270,0.375,3317.7,3317.4,3.10365321]
[1722440314526,0.375,3317.7,3317.4,3.10360321]
[1722440314818,0.375,3317.7,3317.4,0.08926321]
[1722440314974,0.375,3317.7,3317.5,0.37213769]
[1722440315370,0.375,3317.7,3317.6,0.0891848]
[1722440316178,0.375,3317.7,3317.6,3.1034048]
[1722440316415,0.375,3317.7,3317.6,3.1636809]
[1722440316884,0.375,3317.7,3317.6,0.0891848]
[1722440317222,0.375,3317.7,3317.6,3.71123737]
[1722440318694,0.375,3317.7,3317.6,6.72545737]
[1722440319024,0.0724,3317.7,3317.6,6.72545737]
[1722440319386,0.0724,3317.7,3317.6,9.68445737]
[1722440320633,0.0724,3317.7,3317.6,9.62418105]
[1722440321727,0.0724,3317.7,3317.6,12.62418105]
[1722440323135,0.0724,3317.7,3317.6,15.63840105]
[1722440323331,0.0724,3317.7,3317.6,12.62418105]
[1722440328203,0.0724,3317.7,3317.6,10.21518105]
[1722440328698,0.0724,3317.7,3317.6,3.63674105]
[1722440328902,0.0724,3317.7,3317.6,6.65096105]
[1722440330275,0.0724,3317.7,3317.6,3.63674105]
[1722440330403,0.0724,3317.7,3317.6,3.65096105]
[1722440330759,0.0724,3317.7,3317.6,6.65096105]
[1722440331324,0.0724,3317.7,3317.6,0.2891848]
[1722440332228,0.0724,3317.7,3317.6,6.3176248]
[1722440332429,0.0724,3317.7,3317.6,11.5892448]
[1722440332733,0.0724,3317.7,3317.6,5.5608048]
[1722440333347,0.0724,3317.7,3317.6,8.5608048]
[1722440333669,0.0724,3317.7,3317.6,9.71831428]
[1722440333802,0.0724,3317.7,3317.6,12.73253428]
[1722440334248,0.0724,3317.7,3317.6,10.47513428]
[1722440334845,0.1466238,3317.8,3317.7,3.01413]
[1722440335222,0.1466238,3317.8,3317.7,9.17688139]
[1722440335549,0.1466238,3317.8,3317.7,11.08032048]
[1722440335718,0.1466238,3317.8,3317.7,10.99197053]
[1722440335908,0.1466238,3317.8,3317.7,11.08032048]
[1722440336350,0.1466238,3317.8,3317.7,11.02004904]
[1722440337449,0.1466238,3317.8,3317.7,7.45591904]
[1722440337659,0.1466238,3317.8,3317.7,4.44178904]
[1722440337955,0.1466238,3317.8,3317.7,3.14862181]
[1722440338123,0.1466238,3317.8,3317.7,6.16275181]
[1722440338320,0.1466238,3317.8,3317.7,6.10247995]
[1722440340926,0.1466238,3317.8,3317.7,6.65247995]
[1722440341423,0.1466238,3317.8,3317.7,9.66660995]
[1722440341625,0.1466238,3317.8,3317.7,10.65327094]
[1722440343230,0.1466238,3317.8,3317.7,13.66740094]
[1722440343480,2.3871,3319.2,3318.5,3.0134]
[1722440343682,5.39989,3319.2,3318.5,0.06026137]
[1722440343982,2.3871,3319.2,3318.6,0.08808667]
[1722440344768,2.3871,3319.2,3318.7,0.06026096]
[1722440344971,15.44237,3319.7,3318.8,3.01313]
[1722440344972,2.3591,3319.6,3318.8,3.01313]
[1722440345283,2.3591,3319.6,3318.9,0.08787361]
[1722440345284,3.607027,3319.6,3318.9,0.08787361]
[1722440345466,6.619517,3319.6,3318.9,0.06025321]
[1722440345788,3.607027,3319.6,3318.9,0.06025321]
[1722440345932,2.3591,3319.6,3318.9,3.07326321]
[1722440346126,2.3591,3319.6,3318.9,3.07324321]
[1722440346381,2.3591,3319.6,3319.1,3.01285]
[1722440346534,2.3591,3319.6,3319.2,0.0602494]
[1722440346878,2.3591,3319.6,3319.2,0.14794694]
[1722440347061,3.01211,3320.0,3319.2,0.14794694]
[1722440347244,7.216712,3320.0,3319.2,0.0602494]
[1722440347727,4.204602,3320.0,3319.2,0.0602494]
[1722440347926,7.216692,3320.0,3319.2,0.0602494]
[1722440348237,2.3592,3320.0,3319.4,3.01253]
[1722440348477,2.3592,3320.0,3319.4,6.02506]
[1722440348643,2.3592,3320.0,3319.5,3.09996222]
[1722440348851,2.3592,3320.0,3319.6,0.06024105]
[1722440349375,2.3592,3320.0,3319.7,0.08742471]
[1722440349727,2.3592,3320.0,3319.1,3.01285]
[1722440349728,2.896311,3320.0,3319.1,3.01285]
[1722440349930,3.01219,3319.9,3319.8,0.08740096]
[1722440350132,0.42751248,3320.8,3319.1,2.3046]
[1722440350338,2.7367,3320.8,3319.6,2.68]
[1722440350545,0.375,3320.8,3319.9,3.0121]
[1722440350846,0.375,3320.8,3320.5,3.01154]
[1722440351065,0.375,3320.8,3320.6,0.14724356]
[1722440351276,0.375,3320.8,3320.6,0.08702004]
[1722440351471,0.375,3320.8,3320.3,3.01169]
[1722440351673,0.375,3320.8,3320.5,3.01159]
[1722440352079,0.375,3320.8,3320.6,0.0869369]
[1722440352586,0.375,3320.8,3320.7,0.08691008]
[1722440352891,0.375,3320.8,3320.5,3.01157]
[1722440353190,0.375,3320.8,3320.6,0.08693382]
[1722440353891,0.375,3320.8,3319.7,3.55]
[1722440353892,0.375,3320.8,3320.7,0.08340961]
[1722440354105,0.713624,3320.8,3320.0,3.01204]
[1722440354272,0.375,3320.8,3320.0,3.01204]
[1722440354444,0.375,3320.8,3320.1,0.08355206]
[1722440355700,0.375,3320.8,3319.7,6.56227]
[1722440355915,0.375,3320.8,3319.8,3.0958333]
[1722440355916,3.0115,3320.6,3319.8,3.0958333]
[1722440356114,3.35015,3320.6,3319.8,3.0958333]
[1722440356666,3.35015,3320.6,3319.8,0.0836233]
[1722440356967,3.01182,3320.3,3319.8,0.0836233]
[1722440357362,5.40993,3320.5,3319.2,5.69273]
[1722440357363,2.3983,3320.5,3319.7,3.01224]
[1722440357612,0.375,3320.8,3319.0,0.14891769]
[1722440357613,2.26103472,3320.8,3320.0,3.01196]
[1722440357925,0.375,3320.8,3320.3,3.01171]
[1722440358074,0.375,3320.8,3320.3,3.01172]
[1722440358279,0.375,3320.8,3320.4,3.09514082]
[1722440358494,0.375,3320.8,3320.4,0.08348082]
[1722440359012,0.375,3320.8,3320.5,3.01154]
[1722440359242,0.375,3320.8,3320.6,0.06022336]
[1722440359384,0.375,3320.8,3320.6,0.1436567]
[1722440359585,0.375,3320.8,3320.6,3.1551467]
[1722440359792,0.375,3320.8,3320.7,3.21141]
[1722440360141,0.375,3320.8,3320.7,3.29481961]
[1722440360345,0.375,3320.8,3320.7,0.28340961]
[1722440361042,0.375,3320.8,3320.7,3.35504153]
[1722440361205,0.375,3320.8,3320.7,3.99168968]
[1722440361810,0.375,3320.8,3320.7,3.93146776]
[1722440362360,0.375,3320.8,3320.7,0.28340961]
[1722440363841,0.375,3320.8,3320.7,0.48340961]
[1722440364813,3.38632,3320.8,3320.7,0.48340961]
[1722440365525,8.78504,3320.8,3320.7,0.48340961]
[1722440365760,5.77372,3320.8,3320.7,0.48340961]
[1722440365913,6.65221,3320.8,3320.7,0.4]
[1722440366752,9.66353,3320.8,3320.7,0.4]
[1722440369524,2.7624,3320.8,3320.7,0.4]
[1722440369723,0.375,3320.8,3320.7,0.4]
[1722440369920,0.375,3320.8,3320.7,0.48322237]
[1722440370476,6.39764,3320.8,3320.7,0.48322237]
[1722440370822,6.39764,3320.8,3320.7,0.4]
[1722440371168,7.037404,3320.8,3320.7,0.4]
[1722440373666,14.19097134,3320.8,3320.7,0.4]
[1722440373830,14.19129206,3320.8,3320.7,0.4]
[1722440374167,12.308524,3320.8,3320.7,0.4]
[1722440374383,9.297204,3320.8,3320.7,0.4]
[1722440374586,11.18009397,3320.8,3320.7,0.4]
[1722440374884,9.297204,3320.8,3320.7,0.4]
[1722440375196,3.38632,3320.8,3320.7,0.4]
[1722440376045,6.39764,3320.8,3320.7,0.4]
[1722440376479,8.28028268,3320.8,3320.7,0.4]
[1722440376811,6.39764,3320.8,3320.7,0.4]
[1722440378481,8.28028268,3320.8,3320.7,0.4]
[1722440378691,7.52678627,3320.8,3320.7,0.4]
[1722440379064,12.95850627,3320.8,3320.7,0.4]
[1722440379323,15.15620593,3320.8,3320.7,0.4]
[1722440379700,9.94718627,3320.8,3320.7,0.4]
[1722440381702,6.39764,3320.8,3320.7,0.4]
[1722440381912,0.375,3320.8,3320.7,0.4]
[1722440382113,0.375,3320.8,3320.7,0.48348326]
[1722440385743,5.27283479,3320.8,3320.7,0.48348326]
[1722440385955,6.39764,3320.8,3320.7,0.48348326]
[1722440386240,7.25749739,3320.8,3320.7,0.4]
[1722440386402,9.61198675,3320.8,3320.7,0.4]
[1722440386603,9.61339185,3320.8,3320.7,0.4]
[1722440386830,7.41105283,3320.8,3320.7,0.4]
[1722440388433,10.01090602,3320.8,3320.7,0.4]
[1722440388636,7.41105283,3320.8,3320.7,0.4]
[1722440389047,10.01632042,3320.8,3320.7,0.4]
[1722440389350,9.15646303,3320.8,3320.7,0.4]
[1722440389526,6.55118106,3320.8,3320.7,0.4]
[1722440391362,6.17618106,3320.8,3320.7,0.4]
[1722440392022,6.02264,3320.8,3320.7,0.4]
[1722440392217,3.1199438,3320.9,3320.7,0.4]
[1722440392218,3.01124,3320.9,3320.7,0.4]
[1722440392438,0.15349659,3320.8,3320.7,0.47576449]
[1722440393530,2.76461991,3320.8,3320.7,0.47576449]